fUSD/lending_fUSD_20240517
["ID","MTS","AMOUNT","RATE_DAILY","PERIOD"]
[327314427,1715980261902,-150.0,0.00028,5]
[327314428,1715980261911,-150.0,0.00028,5]
[327314429,1715980261923,-300.0,0.00028,7]
[327314430,1715980261932,-300.0,0.00028,5]
[327314431,1715980261942,-3307.09688502,0.00028,7]
[327314432,1715980261955,-900.0,0.00028,29]
[327314433,1715980261965,-2500.0,0.00028,2]
[327314434,1715980261975,-1001.51,0.00028,60]
[327314435,1715980261985,-150.0,0.00028026,120]
[327314436,1715980261995,-170.97001758,0.00028055,30]
[327314437,1715980262005,-1185.0,0.0002807,15]
[327314438,1715980262016,-150.5,0.0002807,15]
[327314439,1715980262027,-164.0,0.0002808,15]
[327314440,1715980262038,-1185.0,0.0002808,15]
[327314441,1715980262048,-286.24,0.0002808,15]
[327314442,1715980262058,-223.22835295,0.0002808,2]
[327314443,1715980262067,-150.5,0.0002808,15]
[327314444,1715980262076,-483.05229021,0.00028082,30]
[327314445,1715980262086,-752.2680774,0.00028082,30]
[327314446,1715980262096,-150.5,0.0002809,15]
[327314447,1715980262107,-272.29,0.0002809,15]
[327314448,1715980262117,-1185.0,0.0002809,15]
[327314449,1715980262126,-150.5,0.0002809,15]
[327314450,1715980262136,-150.5,0.0002809,15]
[327314451,1715980262145,-25487.35253903,0.000281,15]
[327314452,1715980262156,-150.4,0.00028115,2]
[327314453,1715980262167,-150.0,0.00028115,2]
[327314454,1715980262176,-300.0,0.00028115,2]
[327314455,1715980262185,-150.0,0.00028115,2]
[327314456,1715980262197,-150.0,0.00028115,2]
[327314457,1715980262206,-150.0,0.00028115,2]
[327314458,1715980262215,-150.0,0.00028115,2]
[327314459,1715980262224,-150.0,0.00028115,2]
[327314460,1715980262234,-150.0,0.00028115,2]
[327314461,1715980262243,-4174.54161707,0.00028116,2]
[327314462,1715980262252,-2469.73113307,0.00028116,7]
[327314463,1715980262274,-2469.73113307,0.00028116,7]
[327314464,1715980262284,-2469.73113307,0.00028116,7]
[327314465,1715980262295,-2469.73113307,0.00028116,7]
[327314466,1715980262305,-2469.73113307,0.00028116,7]
[327314467,1715980262315,-2469.73113307,0.00028116,7]
[327314468,1715980262324,-2469.73113307,0.00028116,7]
[327314469,1715980262334,-2469.73113307,0.00028116,7]
[327314470,1715980262343,-2469.73113307,0.00028116,7]
[327314471,1715980262352,-2469.73113307,0.00028116,7]
[327314472,1715980262362,-2469.73113307,0.00028116,7]
[327314473,1715980262371,-2469.73113307,0.00028116,7]
[327314474,1715980262380,-2469.73113307,0.00028116,7]
[327314475,1715980262391,-2469.73113307,0.00028116,7]
[327314476,1715980262401,-2469.73113307,0.00028116,7]
[327314477,1715980262411,-2469.73113307,0.00028116,7]
[327314478,1715980262421,-2469.73113307,0.00028116,7]
[327314479,1715980262430,-2469.73113307,0.00028116,7]
[327314480,1715980262440,-2469.73113307,0.00028116,7]
[327314481,1715980262449,-2470.23,0.00028116,7]
[327314482,1715980262460,-727.69249465,0.00028116,7]
[327314483,1715980262471,-727.69249465,0.00028116,7]
[327314484,1715980262480,-727.69249465,0.00028116,7]
[327314485,1715980262490,-727.69249465,0.00028116,7]
[327314486,1715980262500,-727.69249465,0.00028116,7]
[327314487,1715980262681,-727.69249465,0.00028116,7]
[327314488,1715980262691,-727.69249465,0.00028116,7]
[327314489,1715980262700,-727.69249465,0.00028116,7]
[327314490,1715980262710,-727.69249465,0.00028116,7]
[327314491,1715980262719,-727.69249465,0.00028116,7]
[327314492,1715980262728,-727.69249465,0.00028116,7]
[327314493,1715980262738,-727.69249465,0.00028116,7]
[327314494,1715980262747,-727.69249465,0.00028116,7]
[327314495,1715980262757,-727.69249465,0.00028116,7]
[327314496,1715980262766,-727.69249465,0.00028116,7]
[327314497,1715980262776,-727.69249465,0.00028116,7]
[327314498,1715980262786,-727.69249465,0.00028116,7]
[327314499,1715980262795,-727.69249465,0.00028116,7]
[327314500,1715980262804,-727.69249465,0.00028116,7]
[327314501,1715980262813,-728.19,0.00028116,7]
[327314502,1715980262823,-218.0055165,0.00028116,7]
[327314503,1715980262832,-218.0055165,0.00028116,7]
[327314504,1715980262842,-218.0055165,0.00028116,7]
[327314505,1715980262852,-218.0055165,0.00028116,7]
[327314506,1715980262862,-218.0055165,0.00028116,7]
[327314507,1715980262874,-218.0055165,0.00028116,7]
[327314508,1715980262884,-218.0055165,0.00028116,7]
[327314509,1715980262895,-218.0055165,0.00028116,7]
[327314510,1715980262905,-218.0055165,0.00028116,7]
[327314511,1715980262916,-218.0055165,0.00028116,7]
[327314512,1715980262925,-218.0055165,0.00028116,7]
[327314513,1715980262934,-218.0055165,0.00028116,7]
[327314514,1715980262946,-218.0055165,0.00028116,7]
[327314515,1715980262960,-218.0055165,0.00028116,7]
[327314516,1715980262971,-218.0055165,0.00028116,7]
[327314517,1715980262980,-218.0055165,0.00028116,7]
[327314518,1715980262990,-218.0055165,0.00028116,7]
[327314519,1715980263000,-218.0055165,0.00028116,7]
[327314520,1715980263010,-218.0055165,0.00028116,7]
[327314521,1715980263019,-218.5,0.00028116,7]
[327314522,1715980263029,-771.39793387,0.00028116,7]
[327314523,1715980263038,-771.39793387,0.00028116,7]
[327314524,1715980263048,-771.39793387,0.00028116,7]
[327314525,1715980263058,-771.39793387,0.00028116,7]
[327314526,1715980263067,-771.39793387,0.00028116,7]
[327314527,1715980263077,-771.39793387,0.00028116,7]
[327314528,1715980263086,-771.39793387,0.00028116,7]
[327314529,1715980263095,-771.39793387,0.00028116,7]
[327314530,1715980263105,-771.39793387,0.00028116,7]
[327314531,1715980263114,-771.39793387,0.00028116,7]
[327314532,1715980263123,-771.39793387,0.00028116,7]
[327314533,1715980263132,-771.39793387,0.00028116,7]
[327314534,1715980263142,-771.39793387,0.00028116,7]
[327314535,1715980263151,-771.39793387,0.00028116,7]
[327314536,1715980263160,-771.39793387,0.00028116,7]
[327314537,1715980263169,-771.39793387,0.00028116,7]
[327314538,1715980263178,-771.39793387,0.00028116,7]
[327314539,1715980263187,-771.39793387,0.00028116,7]
[327314540,1715980263196,-771.39793387,0.00028116,7]
[327314541,1715980263205,-771.89,0.00028116,7]
[327314542,1715980263214,-150.0,0.00028118,2]
[327314543,1715980263223,-351.62,0.00028119,2]
[327314544,1715980263233,-351.62,0.00028119,2]
[327314545,1715980263242,-351.62,0.00028119,2]
[327314546,1715980263251,-351.62,0.00028119,2]
[327314547,1715980263260,-347.47,0.00028119,2]
[327314548,1715980263269,-471.051805,0.00028148,22]
[327314549,1715980263279,-2108.5233747,0.00028161,2]
[327314550,1715980263289,-12610.9008722,0.00028161,2]
[327314551,1715980263302,-151.0,0.0002818,7]
[327314552,1715980263311,-151.0,0.0002818,7]
[327314553,1715980263321,-151.0,0.0002818,7]
[327314554,1715980263330,-151.0,0.0002818,7]
[327314555,1715980263339,-242.006092,0.0002818,7]
[327314556,1715980263349,-151.0,0.0002818,7]
[327314557,1715980263359,-151.0,0.0002818,7]
[327314558,1715980263370,-151.0,0.0002818,7]
[327314559,1715980263380,-151.0,0.0002818,7]
[327314560,1715980263390,-151.0,0.0002818,7]
[327314561,1715980263400,-151.0,0.0002818,7]
[327314562,1715980263410,-151.0,0.0002818,7]
[327314563,1715980263419,-151.0,0.0002818,7]
[327314564,1715980263428,-151.0,0.0002818,7]
[327314565,1715980263438,-182.84,0.0002818,7]
[327314566,1715980263448,-151.0,0.0002818,7]
[327314567,1715980263457,-151.0,0.0002818,7]
[327314568,1715980263467,-151.0,0.0002818,7]
[327314569,1715980263477,-175.68,0.0002818,15]
[327314570,1715980263488,-151.0,0.0002818,7]
[327314571,1715980263497,-151.0,0.0002818,7]
[327314572,1715980263507,-151.0,0.0002818,7]
[327314573,1715980263516,-151.0,0.0002818,7]
[327314574,1715980263526,-164.396562,0.0002818,7]
[327314575,1715980263536,-151.0,0.0002818,7]
[327314576,1715980263545,-151.0,0.0002818,7]
[327314577,1715980263555,-151.0,0.0002818,7]
[327314578,1715980263564,-151.0,0.0002818,7]
[327314579,1715980263574,-151.0,0.0002818,7]
[327314580,1715980263583,-151.0,0.0002818,7]
[327314581,1715980263593,-151.0,0.0002818,7]
[327314582,1715980263603,-299.031292,0.0002818,7]
[327314583,1715980263613,-279.779586,0.0002818,7]
[327314584,1715980263623,-151.0,0.0002818,7]
[327314585,1715980263633,-177.10456,0.0002818,7]
[327314586,1715980263642,-151.0,0.0002818,7]
[327314587,1715980263652,-151.0,0.0002818,7]
[327314588,1715980263662,-151.0,0.0002818,7]
[327314589,1715980263673,-151.0,0.0002818,7]
[327314590,1715980263685,-151.0,0.0002818,7]
[327314591,1715980263695,-151.0,0.0002818,7]
[327314592,1715980263705,-260.684396,0.0002818,7]
[327314593,1715980263715,-151.0,0.0002818,7]
[327314594,1715980263725,-151.0,0.0002818,7]
[327314595,1715980263735,-151.0,0.0002818,7]
[327314596,1715980263745,-151.0,0.0002818,7]
[327314597,1715980263755,-164.909042,0.0002818,7]
[327314598,1715980263765,-151.0,0.0002818,7]
[327314599,1715980263775,-151.0,0.0002818,7]
[327314600,1715980263785,-151.0,0.0002818,7]
[327314601,1715980263794,-151.0,0.0002818,7]
[327314602,1715980263804,-151.0,0.0002818,7]
[327314603,1715980263815,-151.0,0.0002818,7]
[327314604,1715980263825,-151.0,0.0002818,7]
[327314605,1715980263835,-151.0,0.0002818,7]
[327314606,1715980263847,-151.0,0.0002818,7]
[327314607,1715980263858,-151.0,0.0002818,7]
[327314608,1715980263870,-151.0,0.0002818,7]
[327314609,1715980263884,-1357.34259775,0.0002818,2]
[327314610,1715980263893,-2827.24143719,0.0002818,2]
[327314611,1715980263903,-104191.36948934,0.0002818,2]
[327314612,1715980263912,-151.0,0.00028184,7]
[327314613,1715980263923,-151.0,0.00028184,7]
[327314614,1715980263934,-151.0,0.00028184,7]
[327314615,1715980263943,-224.379286,0.00028184,7]
[327314616,1715980263958,-236.48222182,0.00028184,7]
[327314617,1715980263969,-151.0,0.00028184,7]
[327314618,1715980263980,-151.0,0.00028184,7]
[327314619,1715980263990,-151.0,0.00028184,7]
[327314620,1715980263999,-151.0,0.00028184,7]
[327314621,1715980264008,-151.0,0.00028184,7]
[327314622,1715980264018,-151.0,0.00028184,7]
[327314623,1715980264028,-222.614102,0.00028184,7]
[327314624,1715980264037,-151.0,0.00028184,7]
[327314625,1715980264046,-151.0,0.00028184,7]
[327314626,1715980264056,-151.0,0.00028184,7]
[327314627,1715980264066,-151.0,0.00028184,7]
[327314628,1715980264075,-209.799418,0.00028184,7]
[327314629,1715980264085,-150.5,0.0002819,15]
[327314630,1715980264094,-545.9482351,0.00028197,2]
[327314631,1715980264105,-1637.4763995,0.00028197,2]
[327314632,1715980264116,-225.9,0.000282,7]
[327314633,1715980264126,-151.0,0.00028216,7]
[327314634,1715980264135,-185.232333,0.00028216,7]
[327314635,1715980264145,-185.232333,0.00028216,7]
[327314636,1715980264156,-185.232333,0.00028216,7]
[327314637,1715980264167,-185.232333,0.00028216,7]
[327314638,1715980264176,-185.232333,0.00028216,7]
[327314639,1715980264186,-185.232333,0.00028216,7]
[327314640,1715980264197,-185.232333,0.00028216,7]
[327314641,1715980264207,-185.232333,0.00028216,7]
[327314642,1715980264216,-185.232333,0.00028216,7]
[327314643,1715980264226,-185.232333,0.00028216,7]
[327314644,1715980264236,-151.0,0.00028216,7]
[327314645,1715980264245,-151.0,0.00028216,7]
[327314646,1715980264255,-151.0,0.00028216,7]
[327314647,1715980264265,-151.0,0.00028216,7]
[327314648,1715980264275,-151.0,0.00028216,7]
[327314649,1715980264285,-151.0,0.00028216,7]
[327314650,1715980264294,-151.0,0.00028216,7]
[327314651,1715980264304,-151.0,0.00028216,7]
[327314652,1715980264314,-151.0,0.00028216,7]
[327314653,1715980264324,-263.81947,0.00028216,7]
[327314654,1715980264334,-151.0,0.00028216,7]
[327314655,1715980264347,-151.0,0.00028216,7]
[327314656,1715980264358,-151.0,0.00028216,7]
[327314657,1715980264369,-151.0,0.00028216,7]
[327314658,1715980264379,-151.0,0.00028216,7]
[327314659,1715980264388,-151.0,0.00028216,7]
[327314660,1715980264398,-151.0,0.00028216,7]
[327314661,1715980264407,-8853.58788495,0.00028216,5]
[327314662,1715980264417,-280305.20615597,0.00028216,2]
[327314663,1715980264426,-890.35920149,0.00028216,2]
[327314664,1715980264435,-26912.86927148,0.00028216,2]
[327314665,1715980264444,-9301.39868228,0.00028216,2]
[327314666,1715980264454,-469.87573735,0.00028216,2]
[327314667,1715980264463,-241.16013007,0.00028216,2]
[327314668,1715980264472,-14850.62474391,0.00028216,2]
[327314669,1715980264484,-21439.11143902,0.00028216,2]
[327314670,1715980264493,-317.83335812,0.00028216,2]
[327314671,1715980264504,-1771.4273723,0.00028216,2]
[327314672,1715980264513,-1000.0,0.00028216,2]
[327314673,1715980264522,-534.42975675,0.00028216,2]
[327314674,1715980264532,-4883.1484252,0.00028216,2]
[327314675,1715980264541,-355.73408515,0.00028216,2]
[327314676,1715980264551,-594.67076566,0.00028216,2]
[327314677,1715980264561,-9526.32932604,0.00028216,2]
[327314678,1715980264570,-9280.18824693,0.00028216,2]
[327314679,1715980264580,-35024.93748558,0.00028216,2]
[327314680,1715980264589,-1213541.97858221,0.00028216,2]
[327314681,1715980264598,-1792.69130541,0.00028216,2]
[327314682,1715980264608,-338.58449436,0.00028216,2]
[327314683,1715980264617,-5052.12405986,0.00028216,2]
[327314684,1715980264627,-11560.6892936,0.00028216,2]
[327314685,1715980264636,-13000.0,0.00028216,2]
[327314686,1715980264645,-1008.47007749,0.00028216,2]
[327314687,1715980264657,-13713.33293476,0.00028216,2]
[327314688,1715980264666,-214.85720768,0.00028216,2]
[327314689,1715980264676,-1007.593246,0.00028216,2]
[327314690,1715980264686,-23153.69550299,0.00028216,2]
[327314691,1715980264695,-5012.63904639,0.00028216,2]
[327314692,1715980264704,-150.0,0.00028216,3]
[327314693,1715980264714,-1836.14576265,0.00028216,2]
[327314694,1715980264723,-36357.27629396,0.00028216,2]
[327314695,1715980264733,-46000.68481885,0.00028216,2]
[327314696,1715980264742,-504433.49595371,0.00028216,2]
[327314697,1715980264752,-289.40419415,0.00028216,2]
[327314698,1715980264761,-182308.45144436,0.00028216,7]
[327314699,1715980264771,-1072.80958426,0.00028216,7]
[327314700,1715980264781,-51962.39055487,0.00028216,7]
[327314701,1715980264792,-208.86907444,0.00028216,7]
[327314702,1715980264801,-150.0,0.00028216,3]
[327314703,1715980264812,-14426.87801178,0.00028216,3]
[327314704,1715980264822,-5166.73562572,0.00028216,3]
[327314705,1715980264832,-1242.79628847,0.00028216,4]
[327314706,1715980264842,-949.37289062,0.00028216,4]
[327314707,1715980264851,-56071.32530333,0.00028216,7]
[327314708,1715980264860,-6554.0450163,0.00028216,4]
[327314709,1715980264871,-3856.74756697,0.00028216,3]
[327314710,1715980264885,-19731.4911446,0.00028216,4]
[327314711,1715980264895,-798.80787126,0.00028216,2]
[327314712,1715980264904,-1328.493208,0.00028216,2]
[327314713,1715980264915,-50143.29,0.00028216,7]
[327314714,1715980264925,-136725.80649778,0.00028216,2]
[327314715,1715980264934,-5028.90498691,0.00028216,5]
[327314716,1715980264944,-543.85606789,0.00028216,5]
[327314717,1715980264954,-1920.54813748,0.00028216,5]
[327314718,1715980264963,-945.17124911,0.00028216,5]
[327314719,1715980264973,-368.90026716,0.00028216,5]
[327314720,1715980264983,-572.89741759,0.00028216,5]
[327314721,1715980264992,-26265.91219841,0.00028216,5]
[327314722,1715980265001,-18209.08039699,0.00028216,5]
[327314723,1715980265010,-6826.60766622,0.00028216,5]
[327314724,1715980265020,-211.81589521,0.00028216,5]
[327314725,1715980265029,-528.90916016,0.00028216,5]
[327314726,1715980265039,-205.83680027,0.00028216,5]
[327314727,1715980265049,-2994.85652792,0.00028216,2]
[327314728,1715980265058,-3000.0,0.00028216,7]
[327314729,1715980265068,-597.3548513,0.00028216,6]
[327314730,1715980265077,-38766.64504802,0.00028216,2]
[327314731,1715980265087,-50000.0,0.00028216,20]
[327314732,1715980265096,-50000.0,0.00028216,21]
[327314733,1715980265105,-50000.0,0.00028216,22]
[327314734,1715980265116,-50000.0,0.00028216,23]
[327314735,1715980265126,-50000.0,0.00028216,24]
[327314736,1715980265135,-677.25973324,0.00028216,10]
[327314737,1715980265145,-3049.0,0.00028216,10]
[327314738,1715980265154,-3087.28695028,0.00028216,20]
[327314739,1715980265163,-2149.18959782,0.00028216,10]
[327314740,1715980265173,-830.191869,0.00028216,10]
[327314741,1715980265182,-1000.0,0.00028216,10]
[327314742,1715980265192,-500.0,0.00028216,10]
[327314743,1715980265202,-263.73800486,0.00028216,10]
[327314744,1715980265212,-93649.94654505,0.00028216,10]
[327314745,1715980265222,-4622.68380358,0.00028216,10]
[327314746,1715980265232,-275.0,0.00028216,14]
[327314747,1715980265243,-4809.93381855,0.00028216,7]
[327314748,1715980265252,-7594.71922602,0.00028216,7]
[327314749,1715980265262,-510.97502816,0.00028216,7]
[327314750,1715980265271,-399.09671802,0.00028216,7]
[327314751,1715980265281,-30240.76309752,0.00028216,7]
[327314752,1715980265290,-447810.29589196,0.00028216,7]
[327314753,1715980265300,-7136.3682583,0.00028216,2]
[327314754,1715980265309,-515.42598002,0.00028216,10]
[327314755,1715980265318,-150.0,0.00028216,2]
[327314756,1715980265329,-60473.96864678,0.00028216,20]
[327314757,1715980265338,-501.7819935,0.00028216,2]
[327314758,1715980265348,-48208.34924262,0.00028216,14]
[327314759,1715980265357,-6000.0,0.00028216,7]
[327314760,1715980265368,-6000.0,0.00028216,2]
[327314761,1715980265377,-29674.5,0.00028216,6]
[327314762,1715980265386,-10498.6264512,0.00028216,2]
[327314763,1715980265394,-138950.67343776,0.00028216,6]
[327314764,1715980265406,-2511.93006505,0.00028216,15]
[327314765,1715980265416,-300.0,0.00028216,15]
[327314766,1715980265426,-193.80598558,0.00028216,15]
[327314767,1715980265435,-1300.96209783,0.00028216,15]
[327314768,1715980265444,-1702534.56507203,0.00028216,7]
[327314769,1715980265455,-386.34587407,0.00028216,2]
[327314770,1715980265465,-157751.82351078,0.00028216,7]
[327314771,1715980265475,-159.25108821,0.00028216,29]
[327314772,1715980265618,-54435.90358826,0.00028216,3]
[327314773,1715980265629,-150.0,0.00028216,2]
[327314774,1715980265638,-173.42750039,0.00028216,3]
[327314775,1715980265648,-189.0,0.00028216,30]
[327314776,1715980265658,-1000.0,0.00028216,120]
[327314777,1715980265667,-160.0,0.00028216,30]
[327314778,1715980265677,-1000.0,0.00028216,60]
[327314779,1715980265686,-1000.0,0.00028216,30]
[327314780,1715980265696,-286.32523478,0.00028216,90]
[327314781,1715980265705,-2968.91642575,0.00028216,30]
[327314782,1715980265714,-2179.26040505,0.00028216,30]
[327314783,1715980265724,-4689.00026992,0.00028216,15]
[327314784,1715980265733,-522.45281696,0.00028216,60]
[327314785,1715980265742,-2588.76143651,0.00028216,30]
[327314786,1715980265751,-2095.46368684,0.00028216,120]
[327314787,1715980265761,-1822.17881601,0.00028216,30]
[327314788,1715980265770,-2056.03516527,0.00028216,30]
[327314789,1715980265779,-2000.0,0.00028216,90]
[327314790,1715980265789,-1827.91185213,0.00028216,120]
[327314791,1715980265798,-2091.30317151,0.00028216,60]
[327314792,1715980265807,-934.53672335,0.00028216,120]
[327314793,1715980265817,-173.06658513,0.00028216,120]
[327314794,1715980265826,-154.50889754,0.00028216,120]
[327314795,1715980265835,-2862.20062077,0.00028216,120]
[327314796,1715980265844,-710.69461073,0.00028216,120]
[327314797,1715980265853,-2629.52887478,0.00028216,120]
[327314798,1715980265862,-1809.27048353,0.00028216,120]
[327314799,1715980265874,-1653.37453164,0.00028216,30]
[327314800,1715980265884,-2171.65318261,0.00028216,30]
[327314801,1715980265893,-899.06055843,0.00028216,120]
[327314802,1715980265902,-621.92184281,0.00028216,120]
[327314803,1715980265911,-1040.1257636,0.00028216,30]
[327314804,1715980265920,-1000.69040497,0.00028216,120]
[327314805,1715980265929,-2513.11599272,0.00028216,120]
[327314806,1715980265939,-983.30161533,0.00028216,60]
[327314807,1715980265950,-37744.52907706,0.00028216,7]
[327314808,1715980265959,-167875.49093041,0.00028216,7]
[327314809,1715980265968,-2000.0,0.00028216,30]
[327314810,1715980265977,-1081.40490241,0.00028216,120]
[327314811,1715980265988,-3642.3045,0.00028216,30]
[327314812,1715980265997,-246.3,0.00028216,2]
[327314813,1715980266006,-158.35026486,0.00028216,120]
[327314814,1715980266015,-150.06055743,0.00028216,120]
[327314815,1715980266024,-156.70821021,0.00028216,120]
[327314816,1715980266033,-166.72148848,0.00028216,30]
[327314817,1715980266043,-150.09214271,0.00028216,30]
[327314818,1715980266052,-152.69966069,0.00028216,120]
[327314819,1715980266061,-510.47533961,0.00028216,30]
[327314820,1715980266070,-201.0,0.00028216,120]
[327314821,1715980266080,-31370.32108256,0.00028216,2]
[327314822,1715980266089,-1900.5655319,0.00028216,30]
[327314823,1715980266098,-388.72322859,0.00028216,10]
[327314824,1715980266107,-2633.8842435,0.00028216,120]
[327314825,1715980266117,-30000.0,0.00028216,30]
[327314826,1715980266126,-30000.0,0.00028216,60]
[327314827,1715980266135,-50000.0,0.00028216,15]
[327314828,1715980266143,-50623.03158466,0.00028216,30]
[327314829,1715980266153,-19979.10576125,0.00028216,30]
[327314830,1715980266162,-3425.53012212,0.00028216,7]
[327314831,1715980266171,-160.20881339,0.00028216,7]
[327314832,1715980266180,-1584.74651054,0.00028216,120]
[327314833,1715980266191,-212.19461343,0.00028216,2]
[327314834,1715980266200,-476794.749667,0.00028216,30]
[327314835,1715980266209,-40087.33922737,0.00028216,6]
[327314836,1715980266219,-199.71004332,0.00028216,2]
[327314837,1715980266228,-842008.23859,0.00028216,30]
[327314838,1715980266238,-1149.03761898,0.00028216,2]
[327314839,1715980266247,-931.96316783,0.00028216,30]
[327314840,1715980266256,-1264.18968803,0.00028216,2]
[327314841,1715980266265,-211.67809993,0.00028216,30]
[327314842,1715980266274,-47939.31213867,0.00028216,30]
[327314843,1715980266284,-1500.76702491,0.00028216,4]
[327314844,1715980266293,-1000.0,0.00028216,60]
[327314845,1715980266303,-8057.33872538,0.00028216,30]
[327314846,1715980266312,-2461.0,0.00028216,120]
[327314847,1715980266322,-487.66692859,0.00028216,30]
[327314848,1715980266332,-15075.37616368,0.00028216,2]
[327314849,1715980266341,-655.30481363,0.00028216,2]
[327314850,1715980266350,-23923.82656396,0.00028216,120]
[327314851,1715980266360,-10000.0,0.00028216,30]
[327314852,1715980266370,-2000.0,0.00028216,30]
[327314853,1715980266380,-2000.0,0.00028216,30]
[327314854,1715980266389,-2000.0,0.00028216,30]
[327314855,1715980266398,-2000.0,0.00028216,30]
[327314856,1715980266407,-2000.0,0.00028216,30]
[327314857,1715980266416,-2000.0,0.00028216,30]
[327314858,1715980266425,-992.5,0.00028216,30]
[327314859,1715980266435,-1035.0,0.00028216,10]
[327314860,1715980266445,-1035.0,0.00028216,10]
[327314861,1715980266454,-1035.0,0.00028216,10]
[327314862,1715980266463,-1035.0,0.00028216,10]
[327314863,1715980266472,-1035.0,0.00028216,10]
[327314864,1715980266481,-1035.0,0.00028216,10]
[327314865,1715980266491,-150.0,0.00028216,2]
[327314866,1715980266500,-150.0,0.00028216,2]
[327314867,1715980266509,-150.0,0.00028216,2]
[327314868,1715980266519,-150.0,0.00028216,2]
[327314869,1715980266528,-150.0,0.00028216,2]
[327314870,1715980266537,-169.494912,0.00028216,2]
[327314871,1715980266546,-1035.0,0.00028216,10]
[327314872,1715980266556,-1035.0,0.00028216,10]
[327314873,1715980266566,-1035.0,0.00028216,10]
[327314874,1715980266575,-1035.0,0.00028216,10]
[327314875,1715980266584,-1035.0,0.00028216,10]
[327314876,1715980266594,-1035.0,0.00028216,10]
[327314877,1715980266603,-1035.0,0.00028216,10]
[327314878,1715980266612,-1035.0,0.00028216,10]
[327314879,1715980266622,-1035.0,0.00028216,10]
[327314880,1715980266631,-1035.0,0.00028216,10]
[327314881,1715980266640,-1035.0,0.00028216,10]
[327314882,1715980266649,-1035.0,0.00028216,10]
[327314883,1715980266658,-1035.0,0.00028216,10]
[327314884,1715980266668,-1035.0,0.00028216,10]
[327314885,1715980266678,-1021.89,0.00028216,2]
[327314886,1715980266688,-1021.89,0.00028216,2]
[327314887,1715980266698,-1021.89,0.00028216,2]
[327314888,1715980266707,-1021.89,0.00028216,2]
[327314889,1715980266717,-1021.89,0.00028216,2]
[327314890,1715980266726,-1021.89,0.00028216,2]
[327314891,1715980266735,-1021.89,0.00028216,2]
[327314892,1715980266745,-1021.89,0.00028216,2]
[327314893,1715980266755,-1021.89,0.00028216,2]
[327314894,1715980266764,-1021.89,0.00028216,2]
[327314895,1715980266774,-1021.89,0.00028216,2]
[327314896,1715980266784,-1021.89,0.00028216,2]
[327314897,1715980266793,-1021.89,0.00028216,2]
[327314898,1715980266802,-1021.89,0.00028216,2]
[327314899,1715980266811,-1021.89,0.00028216,2]
[327314900,1715980266821,-1021.89,0.00028216,2]
[327314901,1715980266830,-1021.89,0.00028216,2]
[327314902,1715980266839,-1021.89,0.00028216,2]
[327314903,1715980266848,-1021.89,0.00028216,2]
[327314904,1715980266857,-1021.89,0.00028216,2]
[327314905,1715980266867,-1021.89,0.00028216,60]
[327314906,1715980266887,-1021.89,0.00028216,60]
[327314907,1715980266902,-1021.89,0.00028216,60]
[327314908,1715980266915,-1022.05232417,0.00028216,60]
[327314909,1715980266928,-1035.0,0.00028216,10]
[327314910,1715980266942,-1035.0,0.00028216,10]
[327314911,1715980266958,-1074.75208988,0.00028216,10]
[327314912,1715980266972,-7528.15480801,0.00028216,2]
[327314913,1715980266985,-1000.0,0.00028216,30]
[327314914,1715980266998,-1000.0,0.00028216,30]
[327314915,1715980267014,-1000.0,0.00028216,30]
[327314916,1715980267028,-1000.0,0.00028216,30]
[327314917,1715980267041,-1000.0,0.00028216,30]
[327314918,1715980267054,-1000.0,0.00028216,30]
[327314919,1715980267067,-1000.0,0.00028216,30]
[327314920,1715980267081,-1000.0,0.00028216,30]
[327314921,1715980267093,-1000.0,0.00028216,30]
[327314922,1715980267104,-1000.0,0.00028216,30]
[327314923,1715980267116,-1000.0,0.00028216,30]
[327314924,1715980267131,-1000.0,0.00028216,30]
[327314925,1715980267143,-1000.0,0.00028216,30]
[327314926,1715980267156,-1000.0,0.00028216,30]